Cogmind - Beta 16 @@@ ROGUE MODE // 2025.11.26 @ 16:59:33 Player: Volvedor Result: Destroyed by H-55 Commando with Assault Rifle Performance ------------- Evolutions (2) 1000 Regions Visited (3) 600 Robots Destroyed (31) 155 Value Destroyed (505) 505 Prototype IDs (0) 0 Alien Tech Used (0) 0 Bonus (0) 0 TOTAL SCORE: 2260 Bonus ------- None Cogmind --------- Core Integrity 0/550 Matter 161/300 Energy 91/100 System Corruption 1% Temperature Cool (0) Movement Core (50) Location -8/Materials Parts ------- > --- POWER (2) -------- (None) > --- PROPULSION (3) --- (None) > --- UTILITY (3) ------ Advanced Visual Processing Unit Target Analyzer > --- WEAPON (3) ------- Light Assault Rifle > --- INVENTORY (5) ---- Improved Ion Engine Improved Ion Engine Aluminum Leg Heat Sink Peak State ------------ > --- POWER ------------ Improved Ion Engine Improved Ion Engine > --- PROPULSION ------- Wheel Wheel > --- UTILITY ---------- Improved Terrain Scanner Seismic Detector > --- WEAPON ----------- Particle Gun Particle Gun > --- INVENTORY -------- Improved Ion Engine Aluminum Leg Particle Gun Grenade Launcher [Rating: 14] Favorites ----------- Power Ion Engine Engine Ion Engine Power Core Nuclear Core Propulsion Wheel Wheel Wheel Utility Seismic Detector Device Seismic Detector Processor Targeting Computer Weapon Particle Gun Energy Gun Particle Gun Ballistic Gun Light Assault Rifle Launcher Grenade Launcher Build | -11 -10 -9 -8 ------- Run | Yrd Mat Mat Mat Slots Evolved 4 | . . 2 2 Power 1 | . . 1 . Propulsion 1 | . . . 1 Utility 1 | . . 1 . Weapon 1 | . . . 1 Parts Attached 32 | 8 4 10 10 Power 9 | 1 1 5 2 Engine 8 | 1 1 5 1 Core 1 | . . . 1 Reactor . | . . . . Propulsion 4 | 2 . . 2 Treads . | . . . . Leg . | . . . . Wheel 3 | 2 . . 1 Hover . | . . . . Flight 1 | . . . 1 Utility 10 | 3 . 4 3 Device 5 | 3 . 1 1 Storage . | . . . . Processor 5 | . . 3 2 Hackware . | . . . . Protection . | . . . . Artifact . | . . . . Weapon 9 | 2 3 1 3 Energy Gun 4 | 1 3 . . Energy Cannon . | . . . . Ballistic Gun 3 | 1 . . 2 Ballistic Cannon . | . . . . Launcher 2 | . . 1 1 Special Weapon . | . . . . Impact Weapon . | . . . . Slashing Weapon . | . . . . Piercing Weapon . | . . . . Special Melee Weapon . | . . . . Unidentified Prototypes . | . . . . Parts Lost 18 | . . 4 14 Power 5 | . . 1 4 Propulsion 4 | . . 1 3 Utility 3 | . . 1 2 Weapon 6 | . . 1 5 Highest Loss Streak 6 | . . 2 6 To Critical Strikes 2 | . . . 2 Average Backups 4 | 3 5 4 4 Power 1 | . 1 1 2 Propulsion 1 | 1 1 1 1 Utility . | . . . . Weapon 1 | . 1 2 . Tool/Special . | . . . . Unused Backups 5 | 1 3 . 1 Power 1 | . 1 . . Propulsion 3 | 1 1 . 1 Utility . | . . . . Weapon 1 | . 1 . . Tool/Special . | . . . . Average Slot Usage (%) 86 | . 100 93 54 Engine 16 | . 14 21 9 Wheel 20 | . 28 21 8 Device 17 | . 28 18 3 Processor 9 | . . 9 21 Energy Gun 16 | . 26 16 6 Ballistic Gun 1 | . 1 . 3 Launcher 2 | . . 5 . Peak Build Rating 14 | 9 12 14 14 Average Rating 10 | 5 11 11 9 On Entrance 7 | . 9 12 9 Avg Prop Armor Cover (%) . | . . . . Naked Turns . | . . . . Heaviest Build 22 | 9 15 22 17 Greatest Support 20 | 20 20 20 20 Greatest Overweight (x) 3 | . . 1 3 Average Overweight (x) . | . . . . Largest Inventory Capacity 5 | 5 5 5 5 Average Capacity 5 | 5 5 5 5 Most Carried 5 | 5 5 5 5 Average Carried 4 | 3 4 4 4 Final Capacity 5 | 5 5 5 5 Final Carried 5 | 5 5 5 4 Class Distribution -------------------- 100% | Mutant Dominant Class ---------------- Mutant | -10/Materials Mutant | -9/Materials Mutant | -8/Materials Resources | -11 -10 -9 -8 ----------- Run | Yrd Mat Mat Mat Matter Collected 468 | 289 31 139 9 Remotely 197 | 197 . . . Salvage Created 566 | 150 31 323 62 Parts 54 | 13 4 19 18 Haulers Intercepted . | . . . . Recyclers Shooed . | . . . . Parts Field Recycled . | . . . . Retrieved Matter . | . . . . Parts Self-Destructed . | . . . . Prevented . | . . . . Parts Restored . | . . . . Kills | -11 -10 -9 -8 ------- Run | Yrd Mat Mat Mat Combat Hostiles Destroyed 21 | . 3 9 9 Guns 8 | . 3 5 . AOE 13 | . . 4 9 Classes Destroyed 8 | 2 1 3 2 Worker 1 | . . . 1 Builder 3 | . . 2 1 Tunneler 3 | 3 . . . Recycler 2 | 1 . 1 . Operator 1 | . . . 1 Swarmer 14 | . 3 3 8 Grunt 5 | . . 5 . Sentry 2 | . . 1 1 Best Kill Streak 7 | 4 3 6 7 Combat Bots Only 5 | . 3 5 5 Max Kills in Single Turn 4 | 1 2 3 4 Gunslinging 1 | . 1 . . Exploded 4 | . . 2 4 Melee . | . . . . Uniques/NPCs Destroyed . | . . . . Combat | -11 -10 -9 -8 -------- Run | Yrd Mat Mat Mat Hostile Shots Fired 159 | . 27 27 105 Missed 41 | . 7 2 32 Hits 118 | . 20 25 73 Projectile 118 | . 20 25 73 Critical Strikes 6 | . 1 2 3 Damage Taken 1632 | . 160 364 1108 Core 678 | . 37 83 558 Absorbed by Shields . | . . . . Core Remaining (%) 88 | 100 85 79 . Volleys Fired 42 | 9 7 19 7 Largest 2 | 2 2 2 2 Hottest 130 | 60 130 130 95 Shots Fired 79 | 18 13 34 14 Gun 69 | 18 13 31 7 Cannon . | . . . . Launcher 10 | . . 3 7 Special . | . . . . Kinetic 13 | 9 . . 4 Thermal 56 | 9 13 31 3 Explosive 10 | . . 3 7 Electromagnetic . | . . . . Robot Hit Streak 7 | 7 5 6 5 Robot Miss Streak 6 | 1 2 3 6 Penetration Max . | . . . . Secondary Targets 2 | . 1 1 . Max Gunslinging Chain 1 | . 1 1 . Shots Hit Robots 53 | 13 9 21 10 Core Hits 39 | 5 3 15 16 Critical Kills . | . . . . Critical Parts Destroyed . | . . . . Critical Strikes 2 | . . 2 . Burn 2 | . . 2 . Melee Attacks . | . . . . Impact . | . . . . Slashing . | . . . . Piercing . | . . . . Sneak Attacks . | . . . . Combat Hostiles . | . . . . Follow-up Attacks . | . . . . Damage Inflicted 1863 | 143 133 632 955 Guns 601 | 143 133 269 56 Cannons . | . . . . Explosions 1262 | . . 363 899 Melee . | . . . . Ramming . | . . . . Kinetic 100 | 44 . . 56 Thermal 501 | 99 133 269 . Explosive 1262 | . . 363 899 Electromagnetic . | . . . . Impact . | . . . . Slashing . | . . . . Piercing . | . . . . Highest Corruption 1 | . . . 1 Average Corruption 1 | . . . 1 Corruption Purged . | . . . . Corruption Blocked . | . . . . Overload Shots . | . . . . Overflow Damage 56 | . . 10 46 Projectiles . | . . . . Explosions 56 | . . 10 46 Melee . | . . . . Knockbacks . | . . . . Impact . | . . . . Kinetic . | . . . . Secondary . | . . . . Self-Inflicted Damage 79 | . . 37 42 Shots 3 | . . 1 2 Rammed . | . . . . Targets Rammed . | . . . . Kicked . | . . . . Crushed . | . . . . Highest Temperature 687 | 40 427 687 90 Average Temperature 189 | 19 218 240 38 Received Heat Transfer 342 | . . 144 198 Effects 32 | . 4 28 . Shutdowns 7 | . 1 6 . Energy Bleed 6 | . 1 5 . Interference 7 | . 2 5 . Damage (minor) 2 | . . 2 . Damage (major) 10 | . . 10 . Siege Activations . | . . . . Martial Activations . | . . . . Shielding Activations . | . . . . Robots Disrupted . | . . . . Combat Hostiles . | . . . . Robots Corrupted . | . . . . Combat Hostiles . | . . . . Parts Fried . | . . . . Impact Corruptions . | . . . . Robots Melted . | . . . . Combat Hostiles . | . . . . Parts Melted 1 | . . 1 . Heat Transferred 1372 | 225 333 814 . Parts Sabotaged . | . . . . Parts Stolen . | . . . . Parts Stripped . | . . . . Power Chain Reactions . | . . . . Alert | -11 -10 -9 -8 ------- Run | Yrd Mat Mat Mat Maximum Alert Level 1 | . . 1 1 Low Security (%) 81 | 100 100 64 89 Level 1 18 | . . 35 10 Level 2 . | . . . . Level 3 . | . . . . Level 4 . | . . . . Level 5 . | . . . . High Security . | . . . . Max Security . | . . . . Peak Influence 271 | 10 70 250 271 Initial 50 | . . 20 50 Average 92 | 2 6 152 94 Influence Increases 852 | 20 70 361 401 Destroy 0b10 Robot/C 420 | . 60 180 180 Destroy 0b10 Robot/NC 50 | 20 . 15 15 Destroy Leader 70 | . 10 30 30 Disable Machine 60 | . . 15 45 Destroy Structure 57 | . . 16 41 Lose Combat Pursuer 195 | . . 105 90 Influence Decreases 631 | 20 20 290 301 Entered New Map 101 | . . 30 71 Time Decay 360 | 20 20 220 100 Lost Part 170 | . . 40 130 Squads Dispatched 5 | . 2 2 1 Investigation 1 | . 1 . . Extermination . | . . . . Reinforcement 4 | . 1 2 1 Assault . | . . . . Garrison . | . . . . Intercept . | . . . . Searches Triggered . | . . . . Construction Impeded . | . . . . Haulers Reinforced . | . . . . Active Scanning Responses . | . . . . Cargo Convoy Interrupts . | . . . . Stealth | -11 -10 -9 -8 --------- Run | Yrd Mat Mat Mat Distress Signals 6 | . . 5 1 Communications Jammed . | . . . . Distress Signals . | . . . . Times Spotted 40 | . 5 19 16 Peak Tracking Total 9 | . 3 9 8 Tactical Retreats 6 | . . 3 3 Traps | -11 -10 -9 -8 ------- Run | Yrd Mat Mat Mat Traps Triggered 2 | . 1 . 1 Indirectly . | . . . . Trap Hack Attempts . | . . . . Triggered . | . . . . Disarmed . | . . . . Reprogrammed . | . . . . Reused . | . . . . Traps Extracted . | . . . . Installed . | . . . . Triggered . | . . . . Machines | -11 -10 -9 -8 ---------- Run | Yrd Mat Mat Mat Machines Disabled 4 | . . 1 3 Max in Single Turn 2 | . . 1 2 Machines Repaired . | . . . . Machines Dismantled . | . . . . Machines Sabotaged . | . . . . Overloaded Fab Kills . | . . . . Hacking | -11 -10 -9 -8 --------- Run | Yrd Mat Mat Mat Machines Accessed 5 | . . 4 1 Terminals 4 | . . 3 1 Fabricators . | . . . . Repair Stations . | . . . . Recycling Units . | . . . . Scanalyzers 1 | . . 1 . Garrison Access . | . . . . Total Hacks 9 | . . 7 2 Successful 3 | . . 3 . Failed 6 | . . 4 2 Catastrophic 2 | . . 1 1 Database Lockouts . | . . . . Manual . | . . . . Terminals 8 | . . 6 2 Fabricators . | . . . . Repair Stations . | . . . . Recycling Units . | . . . . Scanalyzers 1 | . . 1 . Garrison Access . | . . . . Terminal Hacks 2 | . . 2 . Zone Layout 2 | . . 2 . Fabricator Hacks . | . . . . Repair Station Hacks . | . . . . Recycling Unit Hacks . | . . . . Scanalyzer 1 | . . 1 . Retrieve Study 1 | . . 1 . Garrison Access Hacks . | . . . . Unauthorized Hacks . | . . . . Terminals . | . . . . Fabricators . | . . . . Repair Stations . | . . . . Recycling Units . | . . . . Scanalyzers . | . . . . Garrison Access . | . . . . Data Cores Recovered . | . . . . Used . | . . . . Hacking Detections 4 | . . 3 1 Full Trace Events . | . . . . Feedback Events . | . . . . Feedback Blocked . | . . . . Robot Schematics Acquired . | . . . . Robots Built . | . . . . Authchips . | . . . . Time . | . . . . Total Robot Build Rating . | . . . . Part Schematics Acquired . | . . . . Parts Built . | . . . . Authchips . | . . . . Time . | . . . . Total Part Build Rating . | . . . . Part Studies Acquired 1 | . . 1 . Parts Repaired . | . . . . Time . | . . . . Parts Recycled . | . . . . Recycled Matter . | . . . . Retrieved Matter . | . . . . Retrieved Components . | . . . . Parts Scanalyzed . | . . . . Part Schematics Acquired . | . . . . Parts Damaged . | . . . . Bothacking | -11 -10 -9 -8 ------------ Run | Yrd Mat Mat Mat Used RIF Installer . | . . . . Robots Hacked . | . . . . Non-combat . | . . . . Combat . | . . . . Robot Hacks Applied . | . . . . Relay Couplers Released . | . . . . Fabnet Peak Effective % . | . . . . Robots Rewired . | . . . . Allies Hacked . | . . . . Hacks Repelled . | . . . . Allies | -11 -10 -9 -8 -------- Run | Yrd Mat Mat Mat Total Allies . | . . . . Largest Group . | . . . . Highest-Rated Group . | . . . . Highest-Rated Ally . | . . . . Total Orders . | . . . . Ally Attacks . | . . . . Total Damage . | . . . . Kills . | . . . . Allies Corrupted . | . . . . Allies Melted . | . . . . Intel | -11 -10 -9 -8 ------- Run | Yrd Mat Mat Mat Active Infowar (turns) 897 | 17 265 403 212 Optics 328 | . . 116 212 Terrain 347 | 7 265 75 . Seismic 555 | 17 251 287 . Robot Analysis Total . | . . . . Derelict Logs Recovered . | . . . . Drone Launches . | . . . . Drone Recoveries . | . . . . Exploration | -11 -10 -9 -8 ------------- Run | Yrd Mat Mat Mat Turns Passed 1059 | 85 265 497 212 Spaces Moved 988 | 53 220 498 217 Core 61 | 3 . . 58 Treads . | . . . . Legs . | . . . . Wheels 927 | 50 220 498 159 Hover . | . . . . Flight . | . . . . Fastest Speed 50 | 50 80 80 50 Average Speed 81 | 78 80 82 79 Slowest Speed 200 | 80 80 95 200 Overloaded Moves . | . . . . Propulsion Burnouts . | . . . . Robots Hopped . | . . . . Potential Cave-ins . | . . . . Cave-ins Triggered . | . . . . Exploration Rate (%) 23 | 3 31 38 22 Regions Visited 3 Branch Regions . Pre-discovered Areas . | . . . . Known Exits Taken . | . . . . Unknown Exits Taken 3 | 1 1 1 . Scrap Searched . | . . . . Spaces Dug . | . . . . Terrain Destroyed 55 | . . 16 39 Melee . | . . . . Projectile . | . . . . AOE 55 | . . 16 39 Terrain Rammed . | . . . . Walls Destroyed . | . . . . Machines Disabled . | . . . . Actions | -11 -10 -9 -8 --------- Run | Yrd Mat Mat Mat Total 1158 | 77 298 547 236 Wait 73 | . 57 16 . Move 985 | 52 219 497 217 Hop . | . . . . Pick Up 10 | 6 4 . . Fast Attach 22 | 8 1 5 8 Attach 3 | . . 1 2 Detach . | . . . . Swap 11 | . 3 6 2 Drop 12 | 2 7 3 . Fire 42 | 9 7 19 7 Melee . | . . . . Ram . | . . . . Kick . | . . . . Crush . | . . . . Escape Stasis . | . . . . Rewire . | . . . . Trap . | . . . . Miscellaneous . | . . . . Route ------- -11/Scrapyard -10/Materials -9/Materials (discovered 2 exits: *Mat / [*Min]) -8/Materials History --------- Turn | Location | Event 5 | -11/Scrapyard | Discovered new exit (range 15) 86 | -11/Scrapyard | Entered Materials 307 | -10/Materials | Build established: Mutant 338 | -10/Materials | Discovered new exit (range 15) 351 | -10/Materials | Entered another Materials area 351 | -9/Materials | Evolved 2 slots: Power x1, Utility x1 494 | -9/Materials | Discovered new exit (range 16) 602 | -9/Materials | Discovered new exit (range 6) 848 | -9/Materials | Entered another Materials area 848 | -8/Materials | Evolved 2 slots: Propulsion x1, Weapon x1 960 | -8/Materials | Lost 6 parts (1p1n1u3w) 1029 | -8/Materials | Core integrity fell below 50% 1046 | -8/Materials | Core integrity fell below 20% 1060 | -8/Materials | Destroyed by H-55 Commando with Assault Rifle Last Messages --------------- 01038_ S-10 Pest destroyed. 01042_ Slug penetrates Earth. 01043_ The unstable cave ceiling collapses. 01044_ Critical hit (Burn: +37). 01045_ Penetrated by Slug. 01047_ Y-45 Defender destroyed. 01048_ Penetrated by Slug. 01048_ Critical hit (Destroy). 01048_ Imp. Grenade Launcher destroyed. 01050_ Shotgun destroyed. 01051_ Acquired Flight Unit. 01051_ Penetrated by Slug. 01051_ Flight Unit destroyed. 01053_ Acquired Lgt. Ion Engine. 01053_ Targeting Computer destroyed. 01054_ Slug penetrates Y-45 Defender. 01056_ Acquired Lgt. Assault Rifle. [Achievement: Hydra] 01056_ Lgt. Ion Engine destroyed. 01058_ The unstable cave ceiling collapses. Map ----- +----------------------------------------------------+ | ???????????# ?????? + | | ???????????# ] #????? # | | ????######## #????# ! # | | ????# # #######+######+### #????####### | | ????# "" # #?????? !?????????####???????????? | | ????# T" # #?????? #???????????????????????? | | ????# "" + #??????"" #???????????????????????? | | ????# # #???????" #???????????????????????? | | ????# # #???????" #???????????????????????? | | ??########## ##??????? #???????????????????????? | | ??# # #####+############???????????????? | | ??# " # ????????????????? | | ??# "" " ###########???????????????? | | ??# "" # #???????????????? | | ??# """ # #### ! T #???????????????? | | ??# "" ######### #???????????????? | | ??# """ # # h "" #???????????????? | | ??#! """ # """ % """ #???????????????? | | ??# """ # """ "" #???????????????? | | ??# " # """ Y" [ #???????????????? | | ??# # "" + % #???????????????? | | ??######### ## #Y# ####???????????????? | | ??????????############ # #??????????????????? | | ?????????????????????# #####??????????????????? | | ?????????????????????# #??????????????????????? | | ?????????????????????# @#??????????????????????? | | ?????????????????????# #??????????????????????? | | ?????????????????????# #??????????????????????? | | ?????????????????????# #??????????????????????? | | ?????????????????????# ??????????????????????? | | ?????????????????????#+#####?????????????????????? | | ?????????????????????????????????????????????????? | | ?????????????????????????????????????????????????? | | ?????????????????????????????????????????????????? | | ?????????????????????????????????????????????????? | | ?????????????????????????????????????????????????? | | ?????????????????????????????????????????????????? | | ?????????????????????????????????????????????????? | | ?????????????????????????????????????????????????? | | ?????????????????????????????????????????????????? | | ?????????????????????????????????????????????????? | | ?????????????????????????????????????????????????? | | ?????????????????????????????????????????????????? | | ?????????????????????????????????????????????????? | | ?????????????????????????????????????????????????? | | ?????????????????????????????????????????????????? | | ?????????????????????????????????????????????????? | | ?????????????????????????????????????????????????? | | ?????????????????????????????????????????????????? | | ?????????????????????????????????????????????????? | +----------------------------------------------------+ Best States ------------- Heat Dissipation 45 Energy Generation 19 Energy Capacity 430 Matter Stores 300 Matter Capacity 300 Sight Range 20 Terrain Scan Range 16 Terrain Scan Density 10 Evasion (%) 50 Targeting Accuracy 5 Target Analysis 5 Item Schematics ----------------- None Robot Schematics ------------------ None Fabricated ------------ Nothing Repaired ---------- Nothing Studied --------- Ion Engine | -9/Materials | Hacked Alien Tech Used ----------------- None Achievements -------------- Hydra Challenges ------------ None Game ------ Seed PersonalThunderFrame Manual? 0 Play Time 00:13:35 Cumulative 39.2 hours Start 2025.11.26 @ 16:46:01 End 2025.11.26 @ 16:59:33 Sessions 1 Manual Loads 0 Difficulty Rogue Special Mode None Game No. 43 Rogue 43 Adventurer 0 Explorer 0 Win Type - Total 0 Types 0/0/0/0/0/0/0/0/0/0 Lore% 24 Gallery% 24 Achievement% 15 Wizard Run 0 Options --------- Layout 2 ASCII 0 Keyboard 0 Movement Mouse Keybinds 0 Fullscreen 1 Font 16/TerminusCaps Map View 27x23 Zoom Use 94% Tactical HUD 1 Map Filters NONE Filters NONE Steam 1 RUN: b4a3927d-3d0e-4ba9-aef3-99d45b2d191b